fUST/lending_fUST_20250209
["ID","MTS","AMOUNT","RATE_DAILY","PERIOD"]
[352348560,1739051445074,-509.33,0.00011369,2]
[352348562,1739051445084,-500.0,0.00011369,2]
[352348564,1739051445094,-500.0,0.00011369,2]
[352348566,1739051445104,-2869.44,0.00011369,2]
[352348568,1739051445121,-344.92397539,0.00011369,2]
[352348570,1739051445130,-22135.45,0.00011369,2]
[352348572,1739051445140,-500.0,0.00011369,2]
[352348575,1739051445150,-10167.05,0.00011369,2]
[352348576,1739051445161,-151.0,0.0001137,2]
[352348579,1739051445170,-151.0,0.0001137,2]
[352348581,1739051445180,-500.0,0.00011385,2]
[352348583,1739051445191,-151.59975057,0.00011385,2]
[352348585,1739051445201,-500.0,0.00011385,2]
[352348587,1739051445211,-500.0,0.00011385,2]
[352348589,1739051445220,-483.93865186,0.00011385,2]
[352348591,1739051445230,-261.26856444,0.00011385,2]
[352348593,1739051445239,-151.64112493,0.00011385,2]
[352348595,1739051445248,-400.4439254,0.00011425,2]
[352348597,1739051445260,-309.0698992,0.00011425,2]
[352348599,1739051445269,-153.4425861,0.00011425,2]
[352348601,1739051445279,-153.0,0.00011425,2]
[352348603,1739051445289,-153.0,0.00011425,2]
[352348605,1739051445298,-306.0,0.00011425,2]
[352348608,1739051445308,-500.0,0.00011459,2]
[352348611,1739051445318,-187.20311775,0.00011459,2]
[352348614,1739051445327,-500.0,0.00011505,2]
[352348616,1739051445337,-586.26103756,0.00011505,2]
[352348618,1739051445346,-151.0,0.00011506,2]
[352348620,1739051445355,-151.0,0.00011506,2]
[352348622,1739051445365,-151.0,0.00011506,2]
[352348624,1739051445375,-500.0,0.00011506,2]
[352348626,1739051445384,-443.388756,0.00011506,2]
[352348628,1739051445394,-443.388756,0.00011506,2]
[352348630,1739051445405,-500.0,0.00011506,2]
[352348632,1739051445415,-500.0,0.00011506,2]
[352348634,1739051445424,-500.0,0.00011506,2]
[352348636,1739051445434,-500.0,0.00011506,2]
[352348638,1739051445444,-500.0,0.00011506,2]
[352348640,1739051445453,-761.77,0.00011506,2]
[352348642,1739051445463,-798.57,0.00011506,2]
[352348644,1739051445473,-252.07,0.00011506,2]
[352348647,1739051445483,-500.0,0.00011506,2]
[352348649,1739051445493,-735.1,0.00011506,2]
[352348651,1739051445502,-555.46,0.00011506,2]
[352348653,1739051445512,-500.0,0.00011506,2]
[352348655,1739051445522,-500.0,0.00011506,2]
[352348657,1739051445532,-500.0,0.00011506,2]
[352348659,1739051445541,-642.09,0.00011506,2]
[352348661,1739051445550,-151.0,0.00011506,2]
[352348663,1739051445560,-500.0,0.00011506,2]
[352348665,1739051445568,-151.0,0.00011506,2]
[352348667,1739051445577,-500.0,0.00011506,2]
[352348669,1739051445586,-500.0,0.00011506,2]
[352348671,1739051445596,-500.0,0.00011506,2]
[352348672,1739051445604,-500.0,0.00011506,2]
[352348674,1739051445613,-649.8897557,0.00011506,2]
[352348677,1739051445623,-500.0,0.00011506,2]
[352348679,1739051445634,-500.0,0.00011506,2]
[352348680,1739051445643,-695.68,0.00011506,2]
[352348683,1739051445653,-500.0,0.00011506,2]
[352348685,1739051445663,-559.57522098,0.00011506,2]
[352348687,1739051445672,-500.0,0.00011506,2]
[352348689,1739051445681,-500.0,0.00011506,2]
[352348690,1739051445691,-226.382895,0.00011506,2]
[352348693,1739051445700,-226.382895,0.00011506,2]
[352348696,1739051445709,-500.0,0.00011506,2]
[352348698,1739051445719,-500.0,0.00011506,2]
[352348700,1739051445728,-500.0,0.00011506,2]
[352348702,1739051445738,-336.26870089,0.00011506,2]
[352348704,1739051445747,-1235.223191,0.00011506,2]
[352348706,1739051445756,-500.0,0.00011506,2]
[352348708,1739051445765,-1235.223191,0.00011506,2]
[352348710,1739051445775,-559.07,0.00011506,2]
[352348712,1739051445785,-500.0,0.00011506,2]
[352348714,1739051445794,-752.57,0.00011506,2]
[352348716,1739051445803,-357.106766,0.00011506,2]
[352348718,1739051445814,-357.106766,0.00011506,2]
[352348720,1739051445824,-500.0,0.00011506,2]
[352348722,1739051445832,-800.39,0.00011506,2]
[352348724,1739051445842,-500.0,0.00011506,2]
[352348726,1739051445852,-500.0,0.00011506,2]
[352348728,1739051445861,-500.0,0.00011506,2]
[352348730,1739051445870,-2446.56,0.00011506,2]
[352348732,1739051445880,-500.0,0.00011506,2]
[352348734,1739051445889,-677.79,0.00011506,2]
[352348736,1739051445899,-502.7,0.00011506,2]
[352348738,1739051445909,-1397.58,0.00011506,2]
[352348740,1739051445918,-1068.86,0.00011506,2]
[352348742,1739051445927,-1048.38,0.00011506,2]
[352348744,1739051445937,-500.0,0.00011506,2]
[352348746,1739051445947,-500.0,0.00011506,2]
[352348748,1739051445956,-998.99,0.00011506,2]
[352348750,1739051445965,-500.0,0.00011506,2]
[352348752,1739051445975,-934.86,0.00011506,2]
[352348754,1739051445984,-2808.06,0.00011506,2]
[352348756,1739051445994,-500.0,0.00011506,2]
[352348758,1739051446003,-500.0,0.00011506,2]
[352348760,1739051446013,-605.56,0.00011506,2]
[352348762,1739051446022,-845.95,0.00011506,2]
[352348764,1739051446031,-500.0,0.00011506,2]
[352348766,1739051446040,-500.0,0.00011506,2]
[352348768,1739051446050,-500.0,0.00011506,2]
[352348770,1739051446060,-500.0,0.00011506,2]
[352348772,1739051446069,-1064.87,0.00011506,2]
[352348774,1739051446079,-500.0,0.00011506,2]
[352348776,1739051446088,-500.0,0.00011506,2]
[352348778,1739051446098,-289.09,0.00011506,2]
[352348780,1739051446109,-500.0,0.00011506,2]
[352348782,1739051446122,-500.0,0.00011506,2]
[352348784,1739051446131,-500.0,0.00011506,2]
[352348786,1739051446141,-151.0,0.00011506,2]
[352348788,1739051446151,-694.451646,0.00011506,2]
[352348790,1739051446161,-684.76227,0.00011506,2]
[352348792,1739051446171,-694.451646,0.00011506,2]
[352348794,1739051446181,-2122.42,0.00011506,2]
[352348796,1739051446193,-684.76227,0.00011506,2]
[352348798,1739051446202,-709.51,0.00011506,2]
[352348800,1739051446211,-500.0,0.00011506,2]
[352348802,1739051446220,-5169.13,0.00011506,2]
[352348804,1739051446230,-500.0,0.00011506,2]
[352348806,1739051446239,-533.66,0.00011506,2]
[352348808,1739051446248,-974.0,0.00011506,2]
[352348810,1739051446258,-500.0,0.00011506,2]
[352348812,1739051446267,-1984.37,0.00011506,2]
[352348814,1739051446277,-500.0,0.00011506,2]
[352348816,1739051446286,-9106.06,0.00011506,2]
[352348818,1739051446295,-2123.8,0.00011506,2]
[352348820,1739051446304,-500.0,0.00011506,2]
[352348822,1739051446314,-986.2,0.00011506,2]
[352348824,1739051446324,-500.0,0.00011506,2]
[352348826,1739051446332,-655.78,0.00011506,2]
[352348827,1739051446342,-500.0,0.00011506,2]
[352348829,1739051446351,-500.0,0.00011506,2]
[352348832,1739051446360,-500.0,0.00011506,2]
[352348834,1739051446369,-2020.77,0.00011506,2]
[352348836,1739051446378,-234.330254,0.00011506,2]
[352348838,1739051446387,-500.0,0.00011506,2]
[352348840,1739051446396,-871.32,0.00011506,2]
[352348842,1739051446406,-500.0,0.00011506,2]
[352348844,1739051446415,-234.330254,0.00011506,2]
[352348845,1739051446426,-1773.38,0.00011506,2]
[352348847,1739051446437,-500.0,0.00011506,2]
[352348850,1739051446446,-500.0,0.00011506,2]
[352348852,1739051446457,-500.0,0.00011506,2]
[352348854,1739051446466,-500.0,0.00011506,2]
[352348856,1739051446475,-336.34060553,0.00011506,2]
[352348858,1739051446485,-904.63,0.00011506,2]
[352348860,1739051446494,-500.0,0.00011506,2]
[352348861,1739051446504,-715.99,0.00011506,2]
[352348864,1739051446513,-500.0,0.00011506,2]
[352348866,1739051446523,-500.0,0.00011506,2]
[352348868,1739051446532,-1039.13,0.00011506,2]
[352348870,1739051446541,-1859.68,0.00011506,2]
[352348872,1739051446550,-642.4,0.00011506,2]
[352348874,1739051446559,-500.0,0.00011506,2]
[352348876,1739051446568,-509.33,0.00011506,2]
[352348878,1739051446577,-500.0,0.00011506,2]
[352348880,1739051446586,-2869.44,0.00011506,2]
[352348882,1739051446595,-22135.45,0.00011506,2]
[352348884,1739051446604,-500.0,0.00011506,2]
[352348886,1739051446614,-10167.05,0.00011506,2]
[352348888,1739051446623,-8243.9664785,0.0001152,5]
[352348890,1739051446632,-100702.88799309,0.0001152,5]
[352348908,1739051446794,-52234.52102214,0.0001152,5]
[352348910,1739051446804,-153.0,0.000116,2]
[352348912,1739051446813,-306.0,0.000116,2]
[352348914,1739051446822,-151.0,0.000116,2]
[352348916,1739051446831,-500.0,0.00011623,2]
[352348918,1739051446841,-500.0,0.00011623,2]
[352348920,1739051446850,-252.490865,0.00011643,2]
[352348922,1739051446859,-252.490865,0.00011643,2]
[352348924,1739051446868,-151.0,0.00011643,2]
[352348926,1739051446878,-151.0,0.00011643,2]
[352348928,1739051446888,-151.0,0.00011643,2]
[352348930,1739051446897,-151.0,0.00011643,2]
[352348932,1739051446906,-151.0,0.00011643,2]
[352348934,1739051446916,-500.0,0.00011643,2]
[352348936,1739051446925,-500.0,0.00011643,2]
[352348938,1739051446934,-500.0,0.00011643,2]
[352348940,1739051446944,-151.0,0.00011643,2]
[352348941,1739051446953,-500.0,0.00011643,2]
[352348944,1739051446963,-500.0,0.00011643,2]
[352348945,1739051446972,-366.138452,0.00011643,2]
[352348947,1739051446981,-366.138452,0.00011643,2]
[352348949,1739051446991,-255.18380739,0.00011643,2]
[352348951,1739051447000,-761.77,0.00011643,2]
[352348953,1739051447010,-798.57,0.00011643,2]
[352348955,1739051447019,-151.0,0.00011643,2]
[352348957,1739051447029,-500.0,0.00011643,2]
[352348959,1739051447038,-735.1,0.00011643,2]
[352348961,1739051447047,-555.46,0.00011643,2]
[352348963,1739051447056,-500.0,0.00011643,2]
[352348966,1739051447066,-500.0,0.00011643,2]
[352348967,1739051447075,-500.0,0.00011643,2]
[352348969,1739051447085,-151.0,0.00011643,2]
[352348971,1739051447095,-151.0,0.00011643,2]
[352348974,1739051447105,-642.09,0.00011643,2]
[352348976,1739051447118,-500.0,0.00011643,2]
[352348977,1739051447128,-151.0,0.00011643,2]
[352348979,1739051447138,-500.0,0.00011643,2]
[352348982,1739051447147,-500.0,0.00011643,2]
[352348983,1739051447157,-901.837087,0.00011643,2]
[352348985,1739051447167,-500.0,0.00011643,2]
[352348987,1739051447176,-170.557207,0.00011643,2]
[352348989,1739051447185,-901.837087,0.00011643,2]
[352348991,1739051447197,-170.557207,0.00011643,2]
[352348993,1739051447206,-500.0,0.00011643,2]
[352348995,1739051447216,-500.0,0.00011643,2]
[352348997,1739051447225,-695.68,0.00011643,2]
[352348999,1739051447234,-500.0,0.00011643,2]
[352349001,1739051447244,-151.0,0.00011643,2]
[352349003,1739051447254,-500.0,0.00011643,2]
[352349005,1739051447263,-226.382895,0.00011643,2]
[352349007,1739051447272,-500.0,0.00011643,2]
[352349009,1739051447282,-226.382895,0.00011643,2]
[352349011,1739051447291,-500.0,0.00011643,2]
[352349013,1739051447300,-246.04762436,0.00011643,2]
[352349015,1739051447309,-151.0,0.00011643,2]
[352349017,1739051447318,-1235.223191,0.00011643,2]
[352349019,1739051447327,-151.0,0.00011643,2]
[352349021,1739051447336,-1235.223191,0.00011643,2]
[352349023,1739051447345,-559.07,0.00011643,2]
[352349025,1739051447354,-752.57,0.00011643,2]
[352349027,1739051447363,-357.106766,0.00011643,2]
[352349029,1739051447373,-357.106766,0.00011643,2]
[352349031,1739051447382,-800.39,0.00011643,2]
[352349033,1739051447391,-500.0,0.00011643,2]
[352349035,1739051447400,-500.0,0.00011643,2]
[352349037,1739051447409,-446.86467182,0.00011643,2]
[352349039,1739051447418,-2446.56,0.00011643,2]
[352349041,1739051447428,-174.13751698,0.00011643,2]
[352349043,1739051447437,-677.79,0.00011643,2]
[352349045,1739051447446,-502.7,0.00011643,2]
[352349047,1739051447455,-1068.86,0.00011643,2]
[352349049,1739051447463,-1048.38,0.00011643,2]
[352349050,1739051447473,-1397.58,0.00011643,2]
[352349052,1739051447482,-500.0,0.00011643,2]
[352349054,1739051447491,-998.99,0.00011643,2]
[352349056,1739051447500,-500.0,0.00011643,2]
[352349058,1739051447510,-934.86,0.00011643,2]
[352349060,1739051447519,-2808.06,0.00011643,2]
[352349062,1739051447528,-550.25,0.00011643,2]
[352349064,1739051447538,-500.0,0.00011643,2]
[352349066,1739051447547,-605.56,0.00011643,2]
[352349068,1739051447557,-845.95,0.00011643,2]
[352349070,1739051447566,-500.0,0.00011643,2]
[352349072,1739051447575,-500.0,0.00011643,2]
[352349074,1739051447584,-500.0,0.00011643,2]
[352349076,1739051447594,-500.0,0.00011643,2]
[352349078,1739051447603,-1064.87,0.00011643,2]
[352349080,1739051447613,-500.0,0.00011643,2]
[352349082,1739051447622,-500.0,0.00011643,2]
[352349084,1739051447631,-500.0,0.00011643,2]
[352349085,1739051447640,-500.0,0.00011643,2]
[352349087,1739051447649,-694.451646,0.00011643,2]
[352349089,1739051447658,-684.76227,0.00011643,2]
[352349091,1739051447668,-694.451646,0.00011643,2]
[352349093,1739051447677,-2122.42,0.00011643,2]
[352349095,1739051447686,-103.57686931,0.00011643,2]
[352349098,1739051447705,-581.18540069,0.00011643,2]
[352349115,1739051447854,-709.51,0.00011643,2]
[352349117,1739051447864,-500.0,0.00011643,2]
[352349119,1739051447874,-5169.13,0.00011643,2]
[352349121,1739051447883,-500.0,0.00011643,2]
[352349122,1739051447892,-87.35977717,0.00011643,2]
[352349123,1739051447906,-886.64022283,0.00011643,2]
[352349124,1739051447915,-500.0,0.00011643,2]
[352349125,1739051447925,-1984.37,0.00011643,2]
[352349126,1739051447934,-500.0,0.00011643,2]
[352349127,1739051447943,-954.33977717,0.00011643,2]
[352349128,1739051448076,-3138.13705016,0.00011643,2]
[352349135,1739051448306,-500.0,0.00010958,2]
[352349137,1739051448317,-119.4229768,0.00010958,2]
[352349144,1739051448387,-380.5770232,0.00010958,2]
[352349146,1739051448399,-43.23985935,0.00010958,2]
[352349703,1739051619594,3000.0,0.00014,30]
[352349704,1739051620082,3000.0,0.0001401,30]
[352349705,1739051620534,3000.0,0.0001402,30]
[352349710,1739052331093,-228.60005069,0.00010094,2]
[352349711,1739052353084,-2238.01785681,0.00010094,2]
[352349712,1739052353105,-400.0,0.00010685,2]
[352349713,1739052353127,-300.0,0.00010957,2]
[352349714,1739052353149,-599.62552068,0.00010957,2]
[352349715,1739052353169,-500.0,0.00010958,2]
[352349716,1739052353189,-500.0,0.00010958,2]
[352349717,1739052353210,-500.0,0.00010958,2]
[352349718,1739052353230,-500.0,0.00010958,2]
[352349719,1739052353251,-40.46194251,0.00010958,2]
[352349721,1739052449883,500.0,0.00018,120]
[352349722,1739052497820,1267.0,0.000184,120]
[352349723,1739052511907,1000.0,0.000184,120]
[352350357,1739052638245,-400.0,0.00010685,2]
[352350358,1739052638255,-300.0,0.00010957,2]
[352350360,1739052638264,-500.0,0.00010958,2]
[352350362,1739052638274,-500.0,0.00010958,2]
[352350364,1739052638283,-500.0,0.00010958,2]
[352350366,1739052638292,-500.0,0.00010958,2]
[352350368,1739052638302,-500.0,0.00010958,2]
[352350370,1739052638311,-500.0,0.00010958,2]
[352350372,1739052638321,-500.0,0.00010958,2]
[352350374,1739052638330,-506.40219388,0.00010958,2]
[352350376,1739052638340,-500.0,0.00010958,2]
[352350378,1739052638350,-500.0,0.00010958,2]
[352350380,1739052638359,-500.0,0.00010958,2]
[352350382,1739052638369,-429.87078119,0.00010958,2]
[352350384,1739052638379,-500.0,0.00010958,2]
[352350386,1739052638388,-636.61,0.00010958,2]
[352350388,1739052638397,-500.0,0.00010958,2]
[352350390,1739052638406,-500.0,0.00010958,2]
[352350392,1739052638415,-500.0,0.00010958,2]
[352350394,1739052638424,-190.74,0.00010958,2]
[352350396,1739052638434,-500.0,0.00010958,2]
[352350398,1739052638443,-500.0,0.00010958,2]
[352350399,1739052638452,-500.0,0.00010958,2]
[352350400,1739052638461,-500.0,0.00010958,2]
[352350401,1739052638472,-500.0,0.00010958,2]
[352350402,1739052638481,-500.0,0.00010958,2]
[352350403,1739052638490,-500.0,0.00010958,2]
[352350404,1739052638499,-731.02,0.00010958,2]
[352350405,1739052638509,-500.0,0.00010958,2]
[352350406,1739052638521,-503.97109054,0.00010958,2]
[352350407,1739052638531,-764.93,0.00010958,2]
[352350408,1739052638540,-506.8853489,0.00010958,2]
[352350409,1739052638549,-500.0,0.00010958,2]
[352350410,1739052638559,-500.0,0.00010958,2]
[352350411,1739052638569,-500.0,0.00010958,2]
[352350412,1739052638578,-500.0,0.00010958,2]
[352350413,1739052638590,-163.30160316,0.00010958,2]
[352350414,1739052638600,-500.0,0.00010958,2]
[352350415,1739052638610,-512.72772952,0.00010958,2]
[352350416,1739052638620,-500.0,0.00010958,2]
[352350417,1739052638629,-202.54858333,0.00010958,2]
[352350418,1739052638639,-500.0,0.00010958,2]
[352350419,1739052638648,-500.0,0.00010958,2]
[352350420,1739052638657,-500.0,0.00010958,2]
[352350421,1739052638667,-502.54081061,0.00010958,2]
[352350423,1739052638676,-500.0,0.00010958,2]
[352350424,1739052638685,-500.0,0.00010958,2]
[352350426,1739052638694,-532.53,0.00010958,2]
[352350429,1739052638704,-500.0,0.00010958,2]
[352350430,1739052638713,-500.0,0.00010958,2]
[352350433,1739052638722,-500.0,0.00010958,2]
[352350435,1739052638731,-500.0,0.00010958,2]
[352350437,1739052638741,-500.0,0.00010958,2]
[352350438,1739052638750,-561.64264187,0.00010958,2]
[352350440,1739052638759,-644.22468862,0.00010958,2]
[352350442,1739052638768,-705.36,0.00010958,2]
[352350444,1739052638778,-500.0,0.00010958,2]
[352350447,1739052638787,-637.33,0.00010958,2]
[352350449,1739052638796,-500.0,0.00010958,2]
[352350451,1739052638806,-500.0,0.00010958,2]
[352350452,1739052638815,-500.0,0.00010958,2]
[352350455,1739052638824,-500.0,0.00010958,2]
[352350457,1739052638833,-500.0,0.00010958,2]
[352350458,1739052638843,-500.0,0.00010958,2]
[352350461,1739052638853,-615.88,0.00010958,2]
[352350462,1739052638862,-500.0,0.00010958,2]
[352350465,1739052638873,-500.0,0.00010958,2]
[352350466,1739052638882,-500.0,0.00010958,2]
[352350468,1739052638891,-500.0,0.00010958,2]
[352350471,1739052638901,-500.0,0.00010958,2]
[352350472,1739052638910,-500.0,0.00010958,2]
[352350474,1739052638919,-500.0,0.00010958,2]
[352350476,1739052638928,-500.0,0.00010958,2]
[352350479,1739052638938,-500.0,0.00010958,2]
[352350481,1739052638947,-500.0,0.00010958,2]
[352350483,1739052638956,-500.0,0.00010958,2]
[352350484,1739052638966,-500.0,0.00010958,2]
[352350487,1739052638976,-500.0,0.00010958,2]
[352350489,1739052638985,-500.0,0.00010958,2]
[352350491,1739052638994,-500.0,0.00010958,2]
[352350493,1739052639003,-500.0,0.00010958,2]
[352350495,1739052639013,-500.0,0.00010958,2]
[352350497,1739052639023,-500.0,0.00010958,2]
[352350499,1739052639033,-500.0,0.00010958,2]
[352350501,1739052639043,-637.71,0.00010958,2]
[352350503,1739052639053,-500.0,0.00010958,2]
[352350504,1739052639062,-500.0,0.00010958,2]
[352350505,1739052639071,-500.0,0.00010958,2]
[352350507,1739052639080,-500.0,0.00010958,2]
[352350509,1739052639089,-500.0,0.00010958,2]
[352350511,1739052639098,-500.0,0.00010958,2]
[352350513,1739052639107,-500.0,0.00010958,2]
[352350515,1739052639116,-500.0,0.00010958,2]
[352350517,1739052639125,-500.0,0.00010958,2]
[352350518,1739052639134,-500.0,0.00010958,2]
[352350519,1739052639145,-500.0,0.00010958,2]
[352350520,1739052639154,-500.0,0.00010958,2]
[352350521,1739052639164,-500.0,0.00010958,2]
[352350522,1739052639173,-500.0,0.00010958,2]
[352350523,1739052639183,-500.0,0.00010958,2]
[352350524,1739052639192,-500.0,0.00010958,2]
[352350525,1739052639201,-391.88252646,0.00010958,2]
[352350526,1739052639212,-500.0,0.00010958,2]
[352350527,1739052639221,-500.0,0.00010958,2]
[352350528,1739052639232,-500.0,0.00010958,2]
[352350529,1739052639241,-500.0,0.00010958,2]
[352350530,1739052639251,-500.0,0.00010958,2]
[352350531,1739052639260,-500.0,0.00010958,2]
[352350532,1739052639269,-500.0,0.00010958,2]
[352350533,1739052639279,-535.35,0.00010958,2]
[352350534,1739052639289,-500.0,0.00010958,2]
[352350535,1739052639299,-500.0,0.00010958,2]
[352350536,1739052639308,-689.85,0.00010958,2]
[352350537,1739052639317,-500.0,0.00010958,2]
[352350538,1739052639326,-500.0,0.00010958,2]
[352350539,1739052639335,-500.0,0.00010958,2]
[352350540,1739052639345,-500.0,0.00010958,2]
[352350541,1739052639354,-500.0,0.00010958,2]
[352350542,1739052639364,-500.0,0.00010958,2]
[352350543,1739052639374,-22230.14,0.00010958,2]
[352350544,1739052639383,-500.0,0.00010958,2]
[352350545,1739052639393,-621.31,0.00010958,2]
[352350546,1739052639402,-500.0,0.00010958,2]
[352350547,1739052639411,-553.17055382,0.00010958,2]
[352350548,1739052639420,-1281.11,0.00010958,2]
[352350549,1739052639429,-2574.06,0.00010958,2]
[352350550,1739052639438,-500.0,0.00010958,2]
[352350551,1739052639447,-601.81,0.00010958,2]
[352350552,1739052639457,-601.81,0.00010958,2]
[352350553,1739052639467,-500.0,0.00010958,2]
[352350554,1739052639476,-500.0,0.00010958,2]
[352350555,1739052639485,-601.81,0.00010958,2]
[352350556,1739052639493,-601.81,0.00010958,2]
[352350557,1739052639502,-601.81,0.00010958,2]
[352350558,1739052639513,-601.81,0.00010958,2]
[352350559,1739052639525,-601.81,0.00010958,2]
[352350560,1739052639534,-601.81,0.00010958,2]
[352350561,1739052639543,-601.81,0.00010958,2]
[352350562,1739052639553,-500.0,0.00010958,2]
[352350563,1739052639563,-500.0,0.00010958,2]
[352350564,1739052639571,-979.79,0.00010958,2]
[352350565,1739052639581,-500.0,0.00010958,2]
[352350566,1739052639592,-856.96,0.00010958,2]
[352350567,1739052639602,-500.0,0.00010958,2]
[352350568,1739052639612,-500.0,0.00010958,2]
[352350569,1739052639622,-915.74,0.00010958,2]
[352350570,1739052639631,-500.0,0.00010958,2]
[352350571,1739052639641,-500.0,0.00010958,2]
[352350572,1739052639650,-578.63,0.00010958,2]
[352350573,1739052639659,-205.52476633,0.00010958,2]
[352350574,1739052639669,-500.0,0.00010958,2]
[352350575,1739052639678,-631.51408497,0.00010958,2]
[352350576,1739052639688,-650.39,0.00010958,2]
[352350577,1739052639697,-500.0,0.00010958,2]
[352350578,1739052639707,-500.0,0.00010958,2]
[352350579,1739052639716,-775.46,0.00010958,2]
[352350580,1739052639725,-500.0,0.00010958,2]
[352350581,1739052639734,-500.0,0.00010958,2]
[352350582,1739052639743,-500.0,0.00010958,2]
[352350583,1739052639753,-500.0,0.00010958,2]
[352350584,1739052639764,-500.0,0.00010958,2]
[352350585,1739052639773,-500.0,0.00010958,2]
[352350586,1739052639783,-500.0,0.00010958,2]
[352350587,1739052639792,-459.53805749,0.00010958,2]
[352350588,1739052639802,-500.0,0.00010958,2]
[352350589,1739052639811,-500.0,0.00010958,2]
[352350590,1739052639820,-259.82679035,0.00010958,2]
[352350591,1739052639830,-500.0,0.00010958,2]
[352350592,1739052639840,-500.0,0.00010958,2]
[352350593,1739052639849,-500.0,0.00010958,2]
[352350594,1739052639859,-976.13,0.00010958,2]
[352350595,1739052639868,-500.0,0.00010958,2]
[352350596,1739052639877,-502.52711191,0.00010958,2]
[352350597,1739052639887,-500.0,0.00010958,2]
[352350598,1739052639896,-500.0,0.00010958,2]
[352350599,1739052639906,-10167.05,0.00010958,2]
[352350600,1739052639916,-500.0,0.00010958,2]
[352350601,1739052639925,-500.0,0.00010958,2]
[352350602,1739052639935,-500.0,0.00010958,2]
[352350603,1739052639945,-500.0,0.00010958,2]
[352350604,1739052639954,-500.0,0.00010958,2]
[352350605,1739052639963,-500.0,0.00010958,2]
[352350606,1739052639972,-500.0,0.00010958,2]
[352350607,1739052639982,-500.0,0.00010958,2]
[352350608,1739052639991,-500.0,0.00010958,2]
[352350609,1739052640001,-961.01,0.00010958,2]
[352350610,1739052640010,-500.0,0.00010958,2]
[352350611,1739052640020,-500.0,0.00010958,2]
[352350612,1739052640030,-503.66489458,0.00010958,2]
[352350613,1739052640040,-500.0,0.00010958,2]
[352350614,1739052640049,-510.30258903,0.00010958,2]
[352350615,1739052640058,-1945.55,0.00010958,2]
[352350616,1739052640067,-500.0,0.00010958,2]
[352350617,1739052640077,-591.08176997,0.00010958,2]
[352350618,1739052640087,-500.0,0.00010958,2]
[352350620,1739052640096,-500.0,0.00010958,2]
[352350621,1739052640105,-1819.01,0.00010958,2]
[352350623,1739052640115,-500.0,0.00010958,2]
[352350625,1739052640124,-4936.47,0.00010958,2]
[352350627,1739052640133,-500.0,0.00010958,2]
[352350629,1739052640142,-500.0,0.00010958,2]
[352350631,1739052640152,-500.0,0.00010958,2]
[352350633,1739052640161,-500.0,0.00010958,2]
[352350634,1739052640170,-500.0,0.00010958,2]
[352350635,1739052640181,-892.83,0.00010958,2]
[352350636,1739052640191,-986.2,0.00010958,2]
[352350637,1739052640202,-500.0,0.00010958,2]
[352350638,1739052640213,-500.0,0.00010958,2]
[352350639,1739052640225,-500.0,0.00010958,2]